bitfinex/quotes_SOLUSD_20241010
["timestamp","ask_amount","ask_price","bid_price","bid_amount"]
[1728565691579,22.8712,139.13,139.1,7.1886]
[1728565691780,22.8712,139.13,139.11,7.1884]
[1728565692575,25.79725451,139.19,139.11,23.09294557]
[1728565692576,22.5257,139.17,139.11,23.09294557]
[1728565692775,7.83515451,139.19,139.13,21.65540733]
[1728565693003,7.83515451,139.19,139.17,7.1853]
[1728565693171,7.83515451,139.19,139.16,17.9642]
[1728565693367,22.5257,139.22,139.16,17.9642]
[1728565693368,0.69879422,139.21,139.19,7.1844]
[1728565694190,0.69879422,139.21,139.16,25.1501]
[1728565694191,27.88259422,139.21,139.16,25.1501]
[1728565695520,7.1839,139.2,139.16,17.9642]
[1728565695709,23.776884,139.18,139.13,17.9682]
[1728565695997,23.776884,139.16,139.12,7.1879]
[1728565696786,30.962784,139.16,139.12,7.1879]
[1728565697802,7.88529422,139.15,139.11,7.1885]
[1728565698006,7.88529422,139.15,139.1,17.9721]
[1728565698214,7.1884,139.12,139.07,25.1663]
[1728565698400,7.88669422,139.13,139.08,7.1897]
[1728565698698,23.776884,139.14,139.07,17.9759]
[1728565698699,23.776884,139.14,139.09,7.1891]
[1728565698872,7.88629422,139.13,139.08,7.1896]
[1728565699076,7.88629422,139.13,139.09,7.1894]
[1728565699297,23.776884,139.13,139.09,7.1894]
[1728565700097,0.12549,139.17,139.1,1.43763306]
[1728565700403,0.12549,139.17,139.09,17.9731]
[1728565700404,23.776884,139.15,139.09,17.9731]
[1728565700592,24.47567822,139.15,139.1,1.43749036]
[1728565700787,0.69879422,139.16,139.13,7.1874]
[1728565701091,23.776884,139.16,139.13,7.1874]
[1728565701298,7.186,139.16,139.12,7.1878]
[1728565702093,7.88429422,139.17,139.12,8.62515916]
[1728565702394,7.186,139.16,139.12,7.1878]
[1728565702787,7.186,139.16,139.12,8.62513319]
[1728565702788,23.776884,139.16,139.12,8.62513319]
[1728565703388,7.88439422,139.17,139.13,7.1873]
[1728565703889,23.776884,139.16,139.13,7.1873]
[1728565704513,23.776884,139.16,139.12,7.1878]
[1728565706015,23.776884,139.16,139.11,25.1591]
[1728565706205,7.1878,139.13,139.08,17.9744]
[1728565706514,23.776884,139.12,139.08,17.9744]
[1728565706811,30.964984,139.12,139.08,25.1644]
[1728565707394,7.88769422,139.11,139.07,7.1904]
[1728565707605,7.1889,139.11,139.07,7.1904]
[1728565707905,23.776884,139.12,139.08,7.19]
[1728565707906,31.66377822,139.12,139.08,7.19]
[1728565708902,7.1885,139.11,139.07,25.1667]
[1728565710008,6.1279,139.13,139.1,7.1886]
[1728565710400,14.01429422,139.13,139.09,25.163]
[1728565711032,13.3155,139.13,139.09,25.163]
[1728565711316,6.1279,139.13,139.1,7.1889]
[1728565712104,6.1279,139.13,139.11,7.1882]
[1728565712318,6.82669422,139.13,139.11,7.1882]
[1728565712496,6.1279,139.13,139.11,7.1882]
[1728565713097,6.1279,139.13,139.12,7.188]
[1728565714022,6.1279,139.13,139.11,17.9706]
[1728565714319,23.776884,139.12,139.1,7.1889]
[1728565714809,23.776884,139.12,139.11,7.1885]
[1728565715900,6.1279,139.13,139.1,17.9724]
[1728565716219,6.1279,139.13,139.11,7.1883]
[1728565719411,6.82669422,139.13,139.11,7.1883]
[1728565719627,6.1279,139.13,139.11,7.1883]
[1728565720199,24.47567822,139.12,139.07,17.9756]
[1728565720509,31.66367822,139.12,139.08,7.1897]
[1728565720896,24.47567822,139.12,139.1,7.189]
[1728565721104,7.1886,139.11,139.08,7.19]
[1728565721296,0.69879422,139.1,139.08,7.19]
[1728565721727,0.69879422,139.11,139.09,7.1895]
[1728565726324,15.6738,139.14,139.07,57.70564609]
[1728565726508,15.6738,139.14,139.13,7.1875]
[1728565726704,15.6738,139.14,139.12,25.1579]
[1728565730822,24.47567822,139.13,139.11,7.1883]
[1728565734112,24.47567822,139.11,139.09,7.1895]
[1728565734308,31.66427822,139.11,139.07,17.9756]
[1728565734530,7.1891,139.1,139.07,25.1658]
[1728565734726,0.69879422,139.1,139.07,25.1658]
[1728565735539,23.776884,139.09,139.05,7.1912]
[1728565735836,0.69879422,139.08,139.06,7.191]
[1728565736211,23.776884,139.09,139.08,7.1901]
[1728565736433,23.776884,139.12,139.09,7.1892]
[1728565736633,24.47567822,139.12,139.05,35.9571]
[1728565736843,24.47567822,139.12,139.11,7.1885]
[1728565737149,0.69879422,139.13,139.11,7.1885]
[1728565738051,20.69879422,139.13,139.1,25.1613]
[1728565738234,23.776884,139.12,139.1,25.1613]
[1728565739342,23.776884,139.12,139.11,7.1885]
[1728565740047,15.6738,139.14,139.1,17.9724]
[1728565740236,6.4739,139.16,139.11,1.43753198]
[1728565740443,0.69879422,139.17,139.15,7.186]
[1728565740642,24.68229355,139.18,139.15,7.1862]
[1728565740831,7.1857,139.17,139.13,7.1873]
[1728565741151,0.69879422,139.16,139.13,7.1873]
[1728565741327,0.69879422,139.16,139.11,17.9703]
[1728565741523,0.69879422,139.16,139.09,0.12549]
[1728565741732,20.0,139.17,139.14,7.1869]
[1728565741930,23.98349933,139.18,139.14,1.43728688]
[1728565742129,7.83639933,139.18,139.17,7.1854]
[1728565742759,7.83639933,139.18,139.16,7.1858]
[1728565743326,7.83639933,139.18,139.17,7.1854]
[1728565747559,7.83639933,139.18,139.17,49.06533609]
[1728565749333,16.4685,139.25,139.23,7.1823]
[1728565749334,0.69879422,139.24,139.23,7.1823]
[1728565749660,17.16729422,139.25,139.22,17.9571]
[1728565749965,24.34859422,139.25,139.21,7.1832]
[1728565750532,23.776884,139.24,139.19,17.9601]
[1728565750749,30.959984,139.22,139.18,7.1848]
[1728565751055,23.776884,139.2,139.16,17.964]
[1728565751439,0.69879422,139.24,139.18,35.9235]
[1728565751643,0.69879422,139.24,139.22,17.9566]
[1728565751644,23.776884,139.24,139.22,17.9566]
[1728565751850,17.16729422,139.25,139.19,7.184]
[1728565751851,23.776884,139.22,139.19,7.184]
[1728565752041,23.776884,139.22,139.19,25.1446]
[1728565752960,23.776884,139.22,139.19,17.9606]
[1728565753253,16.4685,139.25,139.17,7.1851]
[1728565753254,23.776884,139.2,139.17,7.1851]
[1728565753457,23.776884,139.2,139.16,17.964]
[1728565753655,23.776884,139.21,139.18,7.1847]
[1728565753846,24.47567822,139.21,139.18,7.1847]
[1728565759444,31.65917822,139.21,139.17,7.1853]
[1728565759765,0.69879422,139.2,139.17,7.1853]
[1728565759965,0.69879422,139.2,139.18,7.1848]
[1728565761056,23.776884,139.21,139.18,7.1848]
[1728565761248,24.47567822,139.21,139.18,25.147]
[1728565761443,24.47567822,139.21,139.19,7.1844]
[1728565762356,24.47567822,139.21,139.18,25.1469]
[1728565762865,16.4685,139.25,139.18,17.9622]
[1728565762866,7.88099422,139.24,139.18,17.9622]
[1728565763163,0.69879422,139.24,139.22,7.1828]
[1728565764566,24.30103605,139.25,139.23,7.182]
[1728565766161,24.30103605,139.25,139.22,25.1397]
[1728565766539,24.30103605,139.25,139.23,7.1822]
[1728565766741,24.99983027,139.25,139.22,25.1398]
[1728565767444,23.776884,139.24,139.22,25.1398]
[1728565768642,24.47567822,139.24,139.22,25.1398]
[1728565769043,23.776884,139.24,139.22,25.1398]
[1728565770253,23.776884,139.22,139.19,17.96]
[1728565770652,23.776884,139.22,139.2,7.1837]
[1728565771971,23.776884,139.22,139.21,7.1833]
[1728565772654,23.776884,139.22,139.19,17.96]
[1728565772846,23.776884,139.22,139.2,7.1837]
[1728565774972,23.776884,139.22,139.19,17.96]
[1728565775159,0.69879422,139.21,139.19,25.1442]
[1728565775353,23.776884,139.22,139.19,25.1442]
[1728565775354,24.47567822,139.22,139.19,25.1442]
[1728565776979,24.47567822,139.22,139.2,7.1838]
[1728565777162,24.47567822,139.23,139.2,7.1838]
[1728565777871,24.47567822,139.23,139.21,7.1832]
[1728565778116,16.4685,139.25,139.21,17.9584]
[1728565778283,0.69879422,139.24,139.21,17.9584]
[1728565778568,0.69879422,139.24,139.22,7.1826]
[1728565778770,0.69879422,139.24,139.21,25.1417]
[1728565779745,23.776884,139.23,139.21,25.1417]
[1728565780164,24.29999747,139.25,139.22,7.1825]
[1728565780370,23.776884,139.24,139.22,7.1825]
[1728565784363,24.47567822,139.24,139.22,7.1825]
[1728565785663,7.1823,139.23,139.2,7.1837]
[1728565786180,24.47567822,139.24,139.2,7.1837]
[1728565786360,31.65757822,139.24,139.2,7.1837]
[1728565786756,31.65757822,139.24,139.21,7.1833]
[1728565787157,24.47567822,139.24,139.21,7.1833]
[1728565790371,24.47567822,139.24,139.19,25.1451]
[1728565790575,23.776884,139.2,139.17,25.1488]
[1728565790881,23.776884,139.2,139.19,7.1844]
[1728565792085,23.776884,139.21,139.17,17.9635]
[1728565792277,30.960284,139.21,139.17,25.1486]
[1728565792487,0.12549,139.2,139.09,6.9388]
[1728565792674,23.776884,139.19,139.09,6.9388]
[1728565792983,30.961384,139.19,139.15,7.1864]
[1728565793192,30.961384,139.19,139.16,7.1857]
[1728565793193,0.69879422,139.18,139.16,7.1857]
[1728565793586,0.69879422,139.18,139.15,25.1519]
[1728565794268,0.69879422,139.18,139.16,7.1855]
[1728565796283,0.69879422,139.18,139.15,25.1518]
[1728565797390,24.47567822,139.19,139.16,7.1859]
[1728565799075,31.66007822,139.19,139.16,7.1859]
[1728565799780,24.47567822,139.19,139.16,7.1859]
[1728565801386,0.69879422,139.22,139.2,7.1839]
[1728565801595,0.69879422,139.22,139.19,25.1451]
[1728565801889,7.88169422,139.22,139.19,17.9609]
[1728565802195,0.69879422,139.22,139.19,25.1452]
[1728565802685,23.776884,139.22,139.19,17.9609]
[1728565802893,0.69879422,139.21,139.19,17.9609]
[1728565803572,0.69879422,139.21,139.19,25.1452]
[1728565804191,23.776884,139.22,139.19,17.9609]
[1728565804368,23.776884,139.22,139.21,7.1833]
[1728565804683,23.776884,139.22,139.19,17.9609]
[1728565804888,23.776884,139.22,139.2,7.1836]
[1728565805712,7.88239422,139.21,139.17,25.1486]
[1728565805873,0.69879422,139.21,139.17,17.9635]
[1728565806191,0.69879422,139.21,139.15,21.71529327]
[1728565806192,23.776884,139.22,139.21,7.1833]
[1728565806379,23.776884,139.22,139.2,7.1837]
[1728565806984,15.3125,139.24,139.21,17.9581]
[1728565807186,0.69879422,139.24,139.23,17.9556]
[1728565807392,0.69879422,139.24,139.17,35.926]
[1728565807393,0.69879422,139.24,139.18,20.0]
[1728565807697,7.1823,139.23,139.2,17.9588]
[1728565807873,0.69879422,139.22,139.2,17.9588]
[1728565808075,7.88169422,139.22,139.17,17.9624]
[1728565808276,7.1833,139.21,139.17,25.1476]
[1728565808491,31.65957822,139.2,139.17,17.9624]
[1728565808683,0.69879422,139.19,139.17,17.9624]
[1728565809191,0.69879422,139.19,139.16,7.1857]
[1728565809386,7.88319422,139.19,139.15,7.1863]
[1728565809567,0.69879422,139.19,139.16,7.1858]
[1728565810474,0.69879422,139.19,139.14,53.9]
[1728565810677,7.88329422,139.19,139.15,7.1863]
[1728565810876,30.961784,139.18,139.14,25.153]
[1728565811082,0.69879422,139.17,139.14,25.153]
[1728565811894,7.88419422,139.17,139.14,17.9664]
[1728565812101,7.88419422,139.17,139.09,24.38989327]
[1728565812102,23.776884,139.16,139.12,7.1875]
[1728565812283,23.776884,139.16,139.11,17.9706]
[1728565812284,0.69879422,139.15,139.13,7.1873]
[1728565812482,6.4957,139.19,139.14,7.187]
[1728565812692,23.776884,139.17,139.13,17.9684]
[1728565813001,0.69879422,139.16,139.13,17.9684]
[1728565813491,7.88479422,139.16,139.12,7.1879]
[1728565814373,38.819484,139.15,139.1,17.9717]
[1728565814573,38.819484,139.15,139.05,24.38989327]
[1728565814574,30.964784,139.13,139.09,7.1892]
[1728565814774,23.776884,139.11,139.07,17.9756]
[1728565814997,23.776884,139.11,139.08,7.1899]
[1728565817800,0.69879422,139.1,139.07,25.166]
[1728565818000,0.69879422,139.1,139.04,42.8979]
[1728565818001,30.966484,139.09,139.05,7.1915]
[1728565818296,30.966484,139.09,139.04,17.9799]
[1728565818297,23.776884,139.07,139.04,17.9799]
[1728565818480,0.69879422,139.06,139.03,7.1922]
[1728565819000,7.1916,139.05,139.01,26.0016438]
[1728565819198,24.47567822,139.04,139.01,18.8080438]
[1728565820102,0.69879422,139.04,139.01,26.0016438]
[1728565820297,23.776884,139.03,139.01,18.8080438]
[1728565820597,20.0,139.06,139.01,18.8080438]
[1728565820778,23.776884,139.05,139.02,7.1927]
[1728565820979,24.47567822,139.05,139.02,7.1927]
[1728565821374,24.47567822,139.05,139.03,7.1925]
[1728565821577,13.5979,139.07,139.03,17.9813]
[1728565821578,7.10569422,139.07,139.03,17.9813]
[1728565821793,0.69879422,139.07,139.05,7.1912]
[1728565821995,24.27601826,139.08,139.05,7.1912]
[1728565821996,24.97481248,139.08,139.05,7.1912]
[1728565822200,24.97481248,139.08,139.04,7.192]
[1728565822982,0.69879422,139.07,139.04,7.192]
[1728565823276,7.88939422,139.07,139.03,25.1738]
[1728565824205,30.967984,139.06,139.02,7.1931]
[1728565824505,23.776884,139.04,139.01,0.8245438]
[1728565824718,0.69879422,139.03,139.01,0.8245438]
[1728565825005,7.89169422,139.03,139.01,0.8245438]
[1728565825204,0.69879422,139.03,139.01,0.8245438]
[1728565826095,24.47567822,139.04,139.01,8.0181438]
[1728565829309,24.47567822,139.04,139.02,7.193]
[1728565829515,24.47567822,139.05,139.02,7.193]
[1728565829893,23.776884,139.05,139.01,18.8084438]
[1728565830202,0.69879422,139.06,139.04,7.1921]
[1728565830641,0.69879422,139.07,139.05,7.1916]
[1728565831604,0.69879422,139.07,139.03,17.9815]
[1728565831795,0.69879422,139.07,139.04,7.192]
[1728565837796,24.27601826,139.08,139.04,1.43838236]
[1728565838145,24.27601826,139.08,139.07,7.1906]
[1728565838146,7.84121826,139.08,139.07,7.1906]
[1728565838324,7.84121826,139.08,139.07,8.62852169]
[1728565838500,7.84121826,139.08,139.06,7.1909]
[1728565838890,8.54001248,139.08,139.05,25.1702]
[1728565839392,0.69879422,139.07,139.04,7.192]
[1728565839595,0.69879422,139.07,139.0,64.62329327]
[1728565839596,7.84121826,139.08,139.05,7.1914]
[1728565839914,24.47567822,139.07,139.0,6.9388]
[1728565840206,39.418984,139.05,139.01,8.0181438]
[1728565840415,0.69879422,139.04,139.01,8.0181438]
[1728565843194,23.776884,139.03,139.01,0.8245438]
[1728565843515,24.47567822,139.02,139.01,0.8245438]
[1728565844404,58.36485822,139.02,139.01,0.8245438]
[1728565846493,58.23936822,139.02,139.01,0.8245438]
[1728565847218,50.92067822,139.02,139.01,0.8245438]
[1728565848216,24.47567822,139.02,139.01,0.8245438]
[1728565849927,0.69879422,139.02,139.01,0.8245438]
[1728565850112,0.69879422,139.07,139.04,7.1921]
[1728565850318,0.69879422,139.07,139.06,7.1911]
[1728565851126,7.84121826,139.08,139.07,7.1906]
[1728565851629,7.84121826,139.08,139.06,7.1909]
[1728565853935,7.84121826,139.08,139.07,7.1906]
[1728565854405,7.84121826,139.08,139.06,7.1909]
[1728565855732,7.84121826,139.08,139.06,8.62896037]
[1728565856032,7.84121826,139.08,139.06,7.1909]
[1728565856232,7.84121826,139.08,139.07,8.62867763]
[1728565856431,7.84121826,139.08,139.07,7.1906]
[1728565860126,7.84121826,139.08,139.06,7.191]
[1728565861036,7.1865,139.15,139.11,7.1881]
[1728565861248,0.69879422,139.15,139.13,7.1871]
[1728565862114,0.69879422,139.16,139.13,7.1871]
[1728565862316,0.69879422,139.16,139.14,7.1869]
[1728565862510,0.69879422,139.16,139.13,17.9686]
[1728565862724,7.88479422,139.16,139.11,7.1882]
[1728565863141,7.1868,139.15,139.1,25.1605]
[1728565863324,0.69879422,139.14,139.1,25.1605]
[1728565863844,7.88579422,139.14,139.1,25.1605]
[1728565865445,0.69879422,139.14,139.1,25.1605]
[1728565866342,23.776884,139.13,139.1,25.1605]
[1728565866516,23.776884,139.11,139.07,25.1656]
[1728565866718,23.776884,139.11,139.07,17.9755]
[1728565866928,0.69879422,139.1,139.07,25.1659]
[1728565867643,30.965484,139.11,139.07,25.1659]
[1728565867644,23.776884,139.11,139.07,25.1659]
[1728565867823,24.47567822,139.11,139.07,25.1659]
[1728565868217,24.47567822,139.11,139.08,7.1899]
[1728565872360,23.776884,139.11,139.07,17.9755]
[1728565872656,23.776884,139.13,139.09,17.9736]
[1728565873267,23.776884,139.13,139.11,7.1885]
[1728565873625,0.69879422,139.14,139.11,17.9709]
[1728565873853,7.88499422,139.16,139.11,17.9709]
[1728565874049,0.69879422,139.16,139.07,20.12549]
[1728565874243,7.1875,139.13,139.09,7.1892]
[1728565874448,0.69879422,139.12,139.09,7.1892]
[1728565875229,0.69879422,139.13,139.09,7.1892]
[1728565876029,0.69879422,139.15,139.09,1.43768142]
[1728565876354,22.4589,139.17,139.14,7.187]
[1728565876556,0.69879422,139.19,139.18,7.1849]
[1728565876776,0.69879422,139.21,139.18,25.147]
[1728565877052,0.69879422,139.21,139.18,17.9621]
[1728565877231,7.87999422,139.26,139.21,7.1833]
[1728565877442,22.3985,139.25,139.21,7.1833]
[1728565877637,0.69879422,139.24,139.21,7.1833]
[1728565879236,22.3985,139.25,139.22,7.1827]
[1728565881244,0.69879422,139.24,139.21,7.1832]
[1728565881446,22.3985,139.25,139.21,7.1832]
[1728565881759,23.09729422,139.25,139.21,7.1832]
[1728565883237,30.958784,139.24,139.2,25.1428]
[1728565883551,0.69879422,139.23,139.2,25.1428]
[1728565884651,0.69879422,139.23,139.21,7.1833]
[1728565885742,24.47567822,139.24,139.22,7.1828]
[1728565885947,24.47567822,139.24,139.2,17.9591]
[1728565886259,24.47567822,139.24,139.21,7.1832]
[1728565887960,24.47567822,139.24,139.2,25.1429]
[1728565889068,24.47567822,139.24,139.21,7.1833]
[1728565891072,24.47567822,139.24,139.2,17.9591]
[1728565891256,24.47567822,139.24,139.2,25.1428]
[1728565891567,31.65757822,139.24,139.2,25.1428]
[1728565892061,24.47567822,139.24,139.2,25.1428]
[1728565892763,31.65747822,139.24,139.2,25.1428]
[1728565897472,23.776884,139.21,139.18,7.1845]
[1728565897677,24.47567822,139.21,139.19,7.1844]
[1728565898058,0.69879422,139.22,139.17,1.43690325]
[1728565898255,0.69879422,139.22,139.2,7.1838]
[1728565899054,24.47567822,139.23,139.2,7.1838]
[1728565899476,31.65807822,139.23,139.19,25.145]
[1728565901470,31.65807822,139.23,139.14,35.9329]
[1728565901471,23.776884,139.21,139.14,35.9329]
[1728565901664,23.776884,139.21,139.17,7.1852]
[1728565901665,0.69879422,139.2,139.17,7.1852]
[1728565902170,0.69879422,139.2,139.18,7.1849]
[1728565902955,23.776884,139.22,139.19,7.1844]
[1728565903157,0.69879422,139.23,139.21,7.1833]
[1728565903667,0.69879422,139.23,139.22,7.1828]
[1728565903867,22.3985,139.25,139.21,1.43657533]
[1728565904058,29.94719422,139.28,139.24,7.1818]
[1728565904252,29.94719422,139.28,139.22,0.12549]
[1728565904555,0.69879422,139.27,139.26,7.1805]
[1728565904772,7.87709422,139.31,139.27,7.1802]
[1728565905162,7.87709422,139.31,139.24,0.12549]
[1728565905163,0.69879422,139.31,139.24,0.12549]
[1728565905370,0.69879422,139.31,139.3,7.1787]
[1728565905550,22.0683,139.32,139.3,7.1787]
[1728565905954,22.0683,139.32,139.29,17.9476]
[1728565906186,22.0683,139.32,139.31,7.1782]
[1728565906478,22.0683,139.32,139.29,17.9476]
[1728565906665,20.69879422,139.34,139.3,7.1785]
[1728565906977,27.87549422,139.34,139.3,7.1785]
[1728565907783,23.776884,139.33,139.3,7.1785]
[1728565908077,0.69879422,139.32,139.3,7.1785]
[1728565908560,0.69879422,139.32,139.29,25.1268]
[1728565908761,0.69879422,139.32,139.29,17.9476]
[1728565909481,30.955184,139.31,139.26,17.9513]
[1728565909677,0.69879422,139.3,139.26,17.9513]
[1728565910375,23.776884,139.29,139.26,25.1319]
[1728565911060,0.69879422,139.28,139.26,25.1319]
[1728565911259,0.69879422,139.28,139.26,17.9513]
[1728565911988,0.69879422,139.28,139.23,7.1823]
[1728565911989,7.1805,139.27,139.23,7.1823]
[1728565912175,23.776884,139.25,139.16,6.9388]
[1728565912484,7.1827,139.23,139.18,7.1849]
[1728565912662,7.88179422,139.22,139.17,7.1853]
[1728565913477,0.69879422,139.22,139.08,6.9388]
[1728565913673,22.3716,139.23,139.07,14.69790489]
[1728565913674,7.1877,139.13,139.07,14.69790489]
[1728565913884,23.776884,139.15,139.06,17.977]
[1728565914056,0.69879422,139.14,139.09,7.1891]
[1728565914263,20.69879422,139.14,139.06,17.977]
[1728565914468,20.69879422,139.14,139.08,7.19]
[1728565914668,23.776884,139.13,139.08,7.19]
[1728565914972,0.69879422,139.12,139.08,7.19]
[1728565915558,0.69879422,139.13,139.09,0.12549]
[1728565915764,22.3716,139.16,139.13,7.1874]
[1728565916074,22.3716,139.16,139.1,0.12549]
[1728565916386,22.3716,139.16,139.13,0.12549]
[1728565916682,22.3716,139.16,139.12,17.9699]
[1728565917076,22.3716,139.16,139.13,0.12549]
[1728565917265,7.1849,139.18,139.13,0.12549]
[1728565917467,24.47567822,139.17,139.13,0.12549]
[1728565917780,0.69879422,139.17,139.13,7.31279]
[1728565918082,24.47567822,139.18,139.13,7.31279]
[1728565919381,21.8351,139.19,139.14,7.1869]
[1728565919583,0.69879422,139.18,139.15,7.1864]
[1728565919776,0.69879422,139.18,139.14,7.1868]
[1728565922678,7.88409422,139.18,139.13,7.31289]
[1728565922881,21.8351,139.19,139.15,7.1864]
[1728565923286,21.8351,139.19,139.16,8.62285708]
[1728565923490,0.69879422,139.2,139.16,8.62285708]
[1728565924490,0.69879422,139.2,139.16,7.1858]
[1728565924692,7.88269422,139.2,139.15,7.31179]
[1728565924874,0.69879422,139.19,139.15,7.31179]
[1728565925073,7.1849,139.18,139.13,7.31249]
[1728565925264,7.185,139.18,139.14,0.12549]
[1728565925682,31.66127822,139.17,139.12,27.1878]
[1728565925887,0.69879422,139.16,139.12,27.1878]
[1728565926084,7.1851,139.18,139.13,7.1875]
[1728565926483,7.88429422,139.17,139.12,27.1879]
[1728565926790,23.776884,139.17,139.13,7.1875]
[1728565926987,0.69879422,139.17,139.11,17.9705]
[1728565927194,7.186,139.16,139.11,25.1588]
[1728565927373,7.88529422,139.15,139.11,17.9705]
[1728565927577,0.69879422,139.14,139.11,17.9705]
[1728565927785,0.69879422,139.14,139.1,7.189]
[1728565927992,30.964284,139.14,139.09,7.1894]
[1728565928175,0.69879422,139.13,139.09,7.1894]
[1728565928497,7.1866,139.15,139.1,7.1889]
[1728565928691,7.88539422,139.15,139.1,7.1889]
[1728565929391,21.6689,139.16,139.12,7.1879]
[1728565929581,31.66217822,139.15,139.11,7.31389]
[1728565929776,24.47567822,139.15,139.1,25.161]
[1728565929981,7.1881,139.12,139.07,25.1665]
[1728565930575,0.69879422,139.11,139.07,17.9761]
[1728565930776,7.88729422,139.11,139.07,17.9761]
[1728565931079,7.1891,139.1,139.05,7.1915]
[1728565931278,0.69879422,139.09,139.05,7.1915]
[1728565931974,23.776884,139.13,139.06,17.9772]
[1728565932169,23.776884,139.13,139.07,1.43788006]
[1728565932395,0.69879422,139.15,139.13,7.1871]
[1728565932588,21.6689,139.16,139.13,7.1871]
[1728565932895,21.6689,139.16,139.12,17.9693]
[1728565932896,28.855,139.16,139.12,17.9693]
[1728565933692,0.69879422,139.15,139.12,17.9693]
[1728565934075,28.855,139.16,139.12,17.9693]
[1728565935098,0.69879422,139.15,139.12,17.9693]
[1728565935277,28.855,139.16,139.12,17.9693]
[1728565935993,0.69879422,139.15,139.12,17.9693]
[1728565937208,21.6689,139.16,139.13,7.1875]
[1728565939210,15.5126,139.16,139.13,7.1875]
[1728565939384,23.39769422,139.16,139.12,17.9693]
[1728565939578,16.21139422,139.16,139.12,17.9693]
[1728565939879,15.5126,139.16,139.12,17.9693]
[1728565940146,0.69879422,139.15,139.12,25.157]
[1728565940372,0.69879422,139.15,139.12,17.9693]
[1728565941505,22.6989,139.16,139.12,17.9693]
[1728565941711,23.776884,139.17,139.14,7.1868]
[1728565942803,0.69879422,139.18,139.15,7.1864]
[1728565943099,13.6772,139.19,139.15,7.1864]
[1728565943100,15.5392,139.2,139.17,7.185]
[1728565943310,0.69879422,139.22,139.19,7.1842]
[1728565943602,6.4892,139.23,139.19,7.1842]
[1728565943603,7.18799422,139.23,139.19,7.1842]
[1728565944178,16.5093,139.24,139.2,1.43666954]
[1728565944379,30.1788,139.27,139.21,17.9575]
[1728565944591,0.69879422,139.26,139.22,7.1826]
[1728565944798,22.9985,139.27,139.24,7.1816]
[1728565945008,22.9985,139.27,139.24,0.12549]
[1728565945195,30.1789,139.27,139.23,0.12549]
[1728565945390,22.9985,139.27,139.23,7.30779]
[1728565946419,23.69729422,139.27,139.23,7.30779]
[1728565946705,30.87759422,139.27,139.23,7.30779]
[1728565947485,0.69879422,139.26,139.23,7.30779]
[1728565947980,7.87959422,139.26,139.22,17.9564]
[1728565948185,0.69879422,139.26,139.21,7.30869]
[1728565948387,7.1813,139.25,139.21,7.30869]
[1728565949407,7.87969422,139.26,139.21,7.30869]
[1728565950889,7.87969422,139.26,139.22,7.1828]
[1728565951082,22.9985,139.27,139.2,0.25098]
[1728565951283,22.9985,139.27,139.17,20.0]
[1728565951284,7.1827,139.23,139.19,20.0]
[1728565951584,7.1827,139.23,139.19,7.1843]
[1728565951585,7.1824,139.23,139.19,7.1843]
[1728565951994,7.1824,139.23,139.18,7.1847]
[1728565952204,7.1834,139.21,139.17,17.9627]
[1728565952911,7.1834,139.21,139.17,25.148]
[1728565953218,23.776884,139.21,139.17,25.148]
[1728565953512,24.47567822,139.21,139.17,25.148]
[1728565954714,20.69879422,139.24,139.18,7.31029]
[1728565954887,30.959384,139.23,139.18,7.31029]
[1728565955089,0.69879422,139.22,139.18,7.31029]
[1728565956114,31.65817822,139.23,139.18,7.31029]
[1728565956309,31.65817822,139.23,139.19,7.1843]
[1728565957313,7.182,139.24,139.2,7.1838]
[1728565958086,0.69879422,139.26,139.22,7.1828]
[1728565958290,22.9985,139.27,139.22,1.56185567]
[1728565958591,7.1796,139.29,139.25,7.1813]
[1728565958791,0.69879422,139.3,139.26,7.1806]
[1728565958792,7.87759422,139.3,139.26,7.1806]
[1728565958989,36.02229,139.37,139.26,1.56149059]
[1728565959191,1.24998084,139.39,139.31,7.1781]